bitfinex/quotes_ETHUSD_20220123
["timestamp","ask_amount","ask_price","bid_price","bid_amount"]
[1642930281518,2.34503129,2549.9,2549.0,0.774]
[1642930281717,2.50173129,2549.9,2549.1,4.22602747]
[1642930281917,2.34503129,2549.9,2549.1,4.21865154]
[1642930282118,2.34503129,2549.9,2549.2,1.0]
[1642930282318,2.34503129,2549.9,2549.3,4.32052825]
[1642930282518,3.7859399,2549.9,2549.3,4.92052825]
[1642930282718,2.34503129,2549.9,2549.3,4.92052825]
[1642930282918,2.34503129,2549.9,2549.3,0.3]
[1642930283119,2.34503129,2549.9,2549.1,1.0]
[1642930283559,2.34503129,2549.9,2548.4,0.92387735]
[1642930283560,2.34503129,2549.9,2548.7,0.474]
[1642930283763,2.34503129,2549.9,2548.5,5.08362424]
[1642930283764,0.1569,2549.8,2548.5,5.08362424]
[1642930284159,0.14735655,2549.7,2548.4,0.1567]
[1642930284361,0.01285486,2549.4,2548.4,0.1567]
[1642930284762,1.52631906,2549.0,2548.4,0.1567]
[1642930284965,2.5672097,2549.0,2548.7,1.5]
[1642930285166,0.65079874,2548.9,2548.7,1.5]
[1642930286766,7.88040153,2548.8,2548.7,1.5]
[1642930287815,0.65079874,2548.9,2548.7,1.5]
[1642930288416,0.65079874,2548.9,2548.8,4.00870112]
[1642930288819,0.65079874,2548.9,2548.8,4.03940226]
[1642930289016,0.65079874,2548.9,2548.7,0.3]
[1642930289216,0.65079874,2548.9,2548.5,4.6530796]
[1642930289416,0.65079874,2548.9,2548.5,4.9530796]
[1642930289617,11.43099874,2548.9,2548.5,4.9530796]
[1642930289816,0.14867063,2548.8,2548.5,0.3]
[1642930290019,0.14867063,2548.8,2548.5,4.10602068]
[1642930290319,1.34500314,2548.7,2548.5,4.10602068]
[1642930290720,10.7802,2548.9,2548.6,1.0]
[1642930290920,10.7802,2548.9,2548.7,5.49381821]
[1642930291165,10.7802,2548.9,2548.8,5.56895375]
[1642930291369,10.7802,2548.9,2548.8,6.02585375]
[1642930291968,10.7802,2548.9,2548.8,0.4569]
[1642930292170,10.7802,2548.9,2548.8,0.1569]
[1642930292369,10.7802,2548.9,2548.1,0.1569]
[1642930292566,0.13268687,2548.8,2548.0,0.0931036]
[1642930292767,10.7802,2548.9,2548.0,0.0931036]
[1642930292971,10.7802,2548.9,2548.1,2.14861138]
[1642930293166,0.25148042,2548.5,2548.1,0.6309]
[1642930293368,0.25148042,2548.5,2548.2,22.95]
[1642930293570,10.7802,2548.9,2548.3,1.6309]
[1642930293782,10.7802,2548.9,2548.4,22.95]
[1642930293969,1.04089064,2549.0,2548.6,22.95]
[1642930294170,1.04089064,2549.0,2548.7,0.1569]
[1642930294369,1.04089064,2549.0,2548.5,0.1569]
[1642930294571,1.04089064,2549.0,2548.6,1.98399348]
[1642930294824,1.04089064,2549.0,2548.7,22.95]
[1642930295014,11.3073,2549.3,2549.0,6.55]
[1642930295213,11.3073,2549.3,2549.1,7.99882112]
[1642930295415,11.3073,2549.3,2549.2,23.424]
[1642930295613,11.3073,2549.3,2549.2,24.424]
[1642930296014,12.55618566,2549.3,2549.2,24.424]
[1642930296420,12.55618566,2549.3,2549.2,23.424]
[1642930296615,14.01647709,2549.3,2549.2,0.474]
[1642930296815,14.01647709,2549.3,2549.1,3.12267192]
[1642930297215,12.55618566,2549.3,2549.1,3.12267192]
[1642930300464,12.55618566,2549.3,2549.1,3.72267192]
[1642930301570,12.55618566,2549.3,2548.5,0.474]
[1642930301571,6.6,2549.2,2548.5,0.474]
[1642930301769,6.6,2549.2,2548.0,0.0931036]
[1642930301770,1.50158979,2548.3,2548.0,0.0931036]
[1642930301968,0.0124568,2548.7,2548.0,0.0931036]
[1642930302426,0.0124568,2548.7,2548.0,4.48367992]
[1642930302629,7.2217,2549.2,2548.1,22.95]
[1642930302828,7.2217,2549.2,2548.2,4.39057632]
[1642930303027,8.69971704,2549.2,2548.2,4.39057632]
[1642930303233,11.3073,2549.3,2548.3,23.5809]
[1642930303431,11.3073,2549.3,2548.5,22.95]
[1642930303627,1.49484696,2549.0,2548.6,5.02147632]
[1642930303827,1.49484696,2549.0,2548.6,0.774]
[1642930304028,1.49484696,2549.0,2548.0,0.7240036]
[1642930304029,0.15632536,2548.9,2548.0,0.7240036]
[1642930304235,0.15632536,2548.9,2548.0,0.0931036]
[1642930304236,1.36227233,2548.2,2548.0,0.0931036]
[1642930304631,3.72150193,2548.1,2548.0,0.0931036]
[1642930305226,15.34610193,2548.1,2548.0,0.0931036]
[1642930305427,6.6,2548.0,2546.9,0.1569]
[1642930305629,6.6,2548.0,2546.5,0.6309]
[1642930305630,6.7569,2548.0,2546.5,0.6309]
[1642930305931,4.862,2547.9,2546.5,0.6309]
[1642930306166,4.862,2547.9,2546.6,22.95]
[1642930306369,4.862,2547.9,2546.7,0.6309]
[1642930306770,4.862,2547.9,2546.8,28.12809497]
[1642930306967,4.862,2547.9,2546.9,0.1569]
[1642930307167,4.862,2547.9,2546.9,4.37800828]
[1642930308470,1.15537299,2547.5,2547.0,1.09439616]
[1642930308671,4.862,2547.9,2547.1,4.37800828]
[1642930309071,4.862,2547.9,2547.0,0.6]
[1642930309473,4.862,2547.9,2547.0,0.3]
[1642930309672,0.10366833,2547.3,2547.0,0.3]
[1642930309916,4.862,2547.9,2547.0,0.3]
[1642930310119,1.37288519,2547.4,2547.0,0.3]
[1642930310317,1.37288519,2547.4,2547.0,1.3]
[1642930310518,1.37288519,2547.4,2547.1,22.95]
[1642930310915,1.37288519,2547.4,2547.1,0.3]
[1642930311117,0.12655816,2547.3,2547.0,0.3]
[1642930311317,1.37288519,2547.4,2546.9,0.3]
[1642930311517,4.862,2547.9,2547.1,1.38685276]
[1642930311716,4.862,2547.9,2547.2,4.739649]
[1642930311931,4.862,2547.9,2547.2,5.339649]
[1642930312121,13.9764,2548.1,2547.4,22.95]
[1642930312319,13.9764,2548.1,2547.5,0.631]
[1642930312522,1.10329455,2548.0,2547.5,0.457]
[1642930312718,1.10329455,2548.0,2547.5,0.3]
[1642930312918,1.10329455,2548.0,2547.3,0.457]
[1642930313422,1.10329455,2548.0,2546.1,5.00530479]
[1642930313423,0.08893521,2547.5,2547.2,0.157]
[1642930313667,11.41232939,2547.5,2546.2,22.95]
[1642930313866,11.41232939,2547.5,2546.3,4.53500828]
[1642930313867,17.30542939,2547.5,2546.3,4.53500828]
[1642930314270,1.38587618,2547.2,2546.3,4.53500828]
[1642930314670,15.7446,2547.5,2546.4,1.32320759]
[1642930314872,15.7446,2547.5,2546.5,4.53500828]
[1642930315075,0.157,2547.4,2546.5,0.157]
[1642930315674,1.15889618,2547.3,2546.5,0.157]
[1642930316172,15.882727,2547.5,2546.5,0.157]
[1642930317176,1.34866239,2546.9,2546.5,0.157]
[1642930317414,1.34866239,2546.9,2546.5,1.157]
[1642930317615,1.34866239,2546.9,2546.5,0.157]
[1642930317814,0.12945813,2546.8,2546.3,4.53500828]
[1642930318015,1.16824739,2546.6,2546.1,4.53500828]
[1642930318216,11.6232,2546.8,2546.1,4.53500828]
[1642930318816,11.6232,2546.8,2546.1,0.157]
[1642930319020,0.15764916,2546.7,2546.1,0.157]
[1642930319220,11.6232,2546.8,2546.0,44.5]
[1642930319221,1.36376917,2546.2,2546.0,44.5]
[1642930319420,1.52894148,2546.7,2546.2,2.19707023]
[1642930319629,0.157,2546.6,2546.2,2.19707023]
[1642930319819,0.3745829,2546.5,2546.2,2.19707023]
[1642930320226,0.3745829,2546.5,2546.0,30.342]
[1642930320527,1.37637802,2545.2,2545.0,0.05]
[1642930320737,2.34197802,2545.2,2545.0,0.05]
[1642930320929,2.35418538,2545.2,2545.0,0.05]
[1642930321181,0.9656,2545.2,2545.1,3.657]
[1642930321381,0.9656,2545.2,2545.1,3.107]
[1642930321583,0.9656,2545.2,2545.1,0.157]
[1642930322185,0.9656,2545.2,2545.1,1.53299329]
[1642930322383,9.4473,2546.2,2545.2,6.6]
[1642930322590,5.8363,2546.7,2545.1,25.25699329]
[1642930322591,5.8363,2546.7,2545.4,22.95]
[1642930322783,15.4019,2546.7,2545.5,0.631]
[1642930322986,15.4019,2546.7,2545.5,1.631]
[1642930323182,15.4019,2546.7,2545.6,22.95]
[1642930323183,1.3887894,2545.8,2545.6,22.95]
[1642930323384,1.3887894,2545.8,2545.7,0.631]
[1642930323584,1.3887894,2545.8,2545.7,24.881]
[1642930323784,1.3887894,2545.8,2545.7,23.881]
[1642930323987,1.3887894,2545.8,2545.7,2.231]
[1642930324188,1.3887894,2545.8,2545.7,1.231]
[1642930324385,1.3887894,2545.8,2545.7,1.074]
[1642930324586,1.3887894,2545.8,2545.6,0.157]
[1642930324824,1.3887894,2545.8,2545.7,0.3]
[1642930325016,1.3887894,2545.8,2545.3,0.457]
[1642930325017,1.3887894,2545.8,2545.3,0.757]
[1642930325416,1.3887894,2545.8,2545.3,5.07089603]
[1642930325618,1.3887894,2545.8,2545.4,1.0]
[1642930325818,0.295127,2546.6,2545.5,4.3612979]
[1642930326018,0.138127,2546.6,2545.5,5.1182979]
[1642930326217,0.138127,2546.6,2545.6,1.0]
[1642930326218,4.297927,2546.6,2545.6,1.0]
[1642930326619,1.53772278,2546.2,2545.7,4.33953505]
[1642930326818,1.53772278,2546.2,2545.5,0.757]
[1642930326819,1.53772278,2546.2,2545.5,4.32996716]
[1642930327017,1.53772278,2546.2,2545.4,4.69445975]
[1642930327218,1.53772278,2546.2,2545.4,4.85145975]
[1642930327422,1.53788014,2545.8,2545.4,0.474]
[1642930327820,1.17531948,2545.7,2545.4,0.474]
[1642930328023,9.973027,2546.6,2545.5,1.42567608]
[1642930328221,9.816027,2546.6,2545.6,0.157]
[1642930328564,9.816027,2546.6,2545.6,1.157]
[1642930328766,4.297927,2546.6,2545.7,4.37624941]
[1642930328965,5.77181061,2546.6,2545.8,0.157]
[1642930329165,5.77181061,2546.6,2545.8,1.157]
[1642930329365,5.77181061,2546.6,2545.9,4.06345175]
[1642930329566,4.297927,2546.6,2546.0,1.0]
[1642930329767,4.297927,2546.6,2546.1,4.11682195]
[1642930329976,4.1598,2546.6,2546.1,4.89082195]
[1642930330169,10.7007,2546.7,2546.5,1.2263101]
[1642930330370,10.7007,2546.7,2546.5,1.5263101]
[1642930330570,10.7007,2546.7,2546.5,4.76112378]
[1642930330772,10.7007,2546.7,2546.5,0.6]
[1642930330988,10.7007,2546.7,2546.6,1.0]
[1642930331172,10.7007,2546.7,2546.4,1.074]
[1642930331371,10.7007,2546.7,2546.4,0.774]
[1642930331670,10.7007,2546.7,2546.4,1.074]
[1642930331869,12.11228049,2546.7,2546.4,1.074]
[1642930332069,0.10019107,2546.6,2546.4,1.074]
[1642930332520,12.11228049,2546.7,2546.4,1.074]
[1642930333719,12.11228049,2546.7,2546.4,0.6]
[1642930333918,12.11228049,2546.7,2546.0,0.05]
[1642930334119,0.32720326,2546.6,2546.0,0.05]
[1642930334317,0.32720326,2546.6,2546.0,0.0001]
[1642930334318,7.71626493,2546.1,2546.0,0.0001]
[1642930334526,6.6,2546.1,2546.0,0.0001]
[1642930334821,2.757,2546.1,2546.0,0.0001]
[1642930335029,2.6,2546.1,2546.0,0.0001]
[1642930335222,6.2,2546.1,2546.0,0.0001]
[1642930336073,0.157,2546.6,2546.0,0.0001]
[1642930336269,24.9144,2546.7,2546.0,0.1571]
[1642930336470,15.0574,2546.7,2546.0,0.1571]
[1642930336668,1.17140105,2546.4,2546.0,0.1571]
[1642930337069,15.0574,2546.7,2546.0,0.1571]
[1642930337070,0.16935981,2546.6,2546.0,0.0001]
[1642930337270,0.11224082,2546.5,2546.0,0.0001]
[1642930337471,0.16935981,2546.6,2546.0,0.0001]
[1642930338273,1.45397243,2546.2,2546.0,0.0001]
[1642930338676,0.1149663,2546.5,2546.0,0.0001]
[1642930338974,0.157,2546.4,2546.0,0.0001]
[1642930339174,0.157,2546.5,2546.0,0.0001]
[1642930339827,1.40947406,2546.1,2546.0,4.0001]
[1642930340021,0.16935981,2546.6,2546.1,2.05220709]
[1642930340227,1.16839975,2546.4,2546.1,2.05220709]
[1642930340826,0.18557036,2546.3,2546.1,2.05220709]
[1642930341331,4.407,2546.2,2546.1,2.05220709]
[1642930341823,0.157,2546.2,2546.1,2.05220709]
[1642930342625,0.18557036,2546.3,2546.1,2.05220709]
[1642930343024,0.18557036,2546.3,2546.0,4.0001]
[1642930343025,6.6,2546.2,2546.0,4.0001]
[1642930343223,6.757,2546.2,2546.0,4.0001]
[1642930344269,0.157,2546.2,2546.0,4.0001]
[1642930345277,0.28582274,2546.2,2546.0,4.0001]
[1642930345481,0.157,2546.2,2546.0,4.0001]
[1642930345677,1.2427,2546.2,2546.0,4.0001]
[1642930345877,1.2427,2546.2,2544.8,8.78]
[1642930345878,6.6,2546.1,2544.8,8.78]
[1642930346078,0.15655971,2545.9,2544.8,8.08]
[1642930346378,6.6,2546.1,2545.0,20.0]
[1642930346379,0.157,2545.8,2545.0,20.0]
[1642930346579,1.44208309,2545.9,2545.0,20.0]
[1642930346778,1.44208309,2545.9,2545.1,0.26345007]
[1642930346779,4.1521,2545.8,2545.1,0.26345007]
[1642930346978,1.14432951,2545.3,2545.1,0.26345007]
[1642930348026,5.3311622,2545.2,2545.1,0.26345007]
[1642930348220,5.3311622,2545.2,2545.0,20.0]
[1642930348420,0.157,2545.6,2545.1,4.47007096]
[1642930348621,11.3185,2545.7,2545.1,4.47007096]
[1642930348825,10.0972,2545.7,2545.2,0.157]
[1642930349027,5.4647,2546.2,2545.3,0.474]
[1642930349226,11.5455,2546.2,2545.4,0.157]
[1642930349427,9.5656,2546.7,2545.5,1.98910769]
[1642930349626,2.4536,2547.7,2545.6,0.157]
[1642930349627,0.9745,2547.0,2545.6,0.157]
[1642930349828,10.0369,2546.9,2545.7,0.474]
[1642930350027,10.0369,2546.9,2545.8,4.62707096]
[1642930350227,10.0369,2546.9,2545.9,0.474]
[1642930350427,1.34733102,2546.8,2546.1,22.95]
[1642930350631,10.0369,2546.9,2546.2,1.474]
[1642930350826,4.2503,2546.8,2546.2,1.474]
[1642930351069,0.09560816,2546.7,2546.2,0.474]
[1642930351274,10.0369,2546.9,2546.2,0.474]
[1642930351472,10.0369,2546.9,2546.3,0.157]
[1642930351672,0.9745,2547.0,2546.8,1.19127388]
[1642930351875,0.9745,2547.0,2546.9,0.631]
[1642930352070,14.889,2547.6,2546.9,23.581]
[1642930352272,14.889,2547.6,2546.9,0.631]
[1642930352471,1.33074929,2547.2,2546.9,0.631]
[1642930352670,15.046,2547.6,2546.9,0.474]
[1642930352873,15.046,2547.6,2546.4,0.474]
[1642930352874,0.01281963,2547.1,2546.4,0.474]
[1642930353077,0.01281963,2547.1,2546.3,2.0]
[1642930353078,4.66205832,2546.4,2546.3,2.0]
[1642930353279,0.4392623,2546.4,2545.4,0.157]
[1642930353474,0.4392623,2546.4,2545.0,43.424]
[1642930353475,0.157,2546.3,2545.5,0.26340877]
[1642930353672,1.2701915,2545.9,2545.5,0.26340877]
[1642930354277,1.36090389,2545.3,2545.1,0.157]
[1642930354474,1.60128461,2545.8,2545.1,0.157]
[1642930354475,1.4530047,2545.8,2545.1,0.157]
[1642930354674,1.2960047,2545.8,2545.0,20.0]
[1642930355128,0.08929633,2545.7,2545.0,20.0]
[1642930355325,0.42724059,2545.1,2545.0,20.0]
[1642930355525,0.157,2545.7,2545.0,20.0]
[1642930355725,1.22152431,2545.8,2545.1,4.06294078]
[1642930355929,0.157,2546.1,2545.1,4.06294078]
[1642930356127,0.295127,2546.2,2545.0,20.04035807]
[1642930356325,0.157,2546.0,2545.0,20.04035807]
[1642930356525,0.157,2546.1,2545.0,20.04035807]
[1642930356728,0.157,2546.1,2545.1,4.13233543]
[1642930356924,1.42775987,2545.8,2545.0,21.54735183]
[1642930357127,0.24881263,2545.7,2545.0,20.04035807]
[1642930357325,1.41489771,2545.4,2545.0,20.04035807]
[1642930357525,0.09249627,2545.3,2545.0,24.04035807]
[1642930357726,1.41489771,2545.4,2545.0,23.99035807]
[1642930357925,0.157,2545.3,2545.0,23.99035807]
[1642930358127,1.43681484,2545.2,2545.0,23.99035807]
[1642930359067,1.43681484,2545.2,2545.0,9.81565807]
[1642930359270,0.28643045,2544.3,2544.2,0.157]
[1642930359471,1.033,2545.3,2544.1,0.1572]
[1642930359472,2.3696,2545.2,2544.1,0.1572]
[1642930359870,6.7548,2545.2,2544.1,0.1572]
[1642930360071,0.09626314,2545.1,2544.2,3.34031273]
[1642930360273,0.09626314,2545.1,2544.0,1.43860892]
[1642930360274,0.157,2545.0,2544.0,1.43860892]
[1642930360474,17.4187,2545.2,2544.1,3.34033585]
[1642930360475,1.1269305,2544.7,2544.1,3.34033585]
[1642930360672,1.16248149,2545.0,2544.8,0.76149557]
[1642930361293,1.27961245,2545.0,2543.8,0.157]
[1642930361480,1.27961245,2545.0,2543.5,0.00262361]
[1642930361481,9.98666503,2544.9,2543.5,0.00262361]
[1642930361675,1.31037387,2544.0,2543.5,0.00262361]
[1642930361874,0.1572,2544.7,2543.6,7.6372]
[1642930362078,1.1581,2544.8,2543.7,3.3408189]
[1642930362332,1.1581,2544.8,2543.8,0.1572]
[1642930362527,1.1581,2544.8,2543.9,3.3408189]
[1642930362726,1.1581,2544.8,2544.0,0.1572]
[1642930363126,0.23087987,2544.5,2544.2,1.1428201]
[1642930363326,0.23087987,2544.5,2544.2,0.3]
[1642930363527,0.23087987,2544.5,2544.3,0.3]
[1642930363730,0.23087987,2544.5,2544.0,0.1572]
[1642930363926,1.1581,2544.8,2544.0,0.1572]
[1642930364129,1.1581,2544.8,2544.0,0.4572]
[1642930364326,9.6778,2544.9,2544.0,0.4572]
[1642930364528,9.6778,2544.9,2544.1,22.95]
[1642930364727,9.6778,2544.9,2544.2,6.2537826]
[1642930364934,9.6778,2544.9,2544.2,0.7572]
[1642930364935,0.23087987,2544.8,2544.2,0.7572]
[1642930365132,0.23087987,2544.8,2544.3,1.0]
[1642930365334,0.23087987,2544.8,2544.3,1.20480508]
[1642930365537,9.6778,2544.9,2544.4,0.3]
[1642930366378,0.10779843,2544.8,2544.4,0.3]
[1642930366775,9.6778,2544.9,2544.4,0.3]
[1642930367175,9.6778,2544.9,2543.9,0.157]
[1642930367176,0.09338798,2544.8,2543.9,0.157]
[1642930367376,9.6778,2544.9,2543.9,0.157]
[1642930367975,0.23087987,2544.5,2544.2,1.3197933]
[1642930368275,9.6778,2544.9,2544.2,1.6197933]
[1642930368476,0.11425844,2544.8,2544.2,1.9197933]
[1642930368676,9.6778,2544.9,2544.2,1.9197933]
[1642930368980,9.6778,2544.9,2544.2,0.6]
[1642930369175,0.1228925,2544.8,2544.2,0.3]
[1642930369376,9.6778,2544.9,2543.8,1.457]
[1642930369576,9.6778,2544.9,2543.8,0.757]
[1642930369815,9.6778,2544.9,2543.8,1.231]
[1642930370024,9.6778,2544.9,2543.8,2.48898061]
[1642930370622,1.25637339,2544.5,2543.8,1.231]
[1642930371528,9.6778,2544.9,2543.8,1.231]
[1642930371529,1.23854625,2544.1,2543.8,0.157]
[1642930371724,0.33289242,2544.0,2543.8,0.157]
[1642930371924,0.23087987,2544.0,2543.8,0.157]
[1642930372724,0.23087987,2544.0,2542.9,0.1572]
[1642930372925,1.32611235,2543.5,2542.7,0.1572]
[1642930373124,0.23087987,2544.0,2542.8,3.34133433]
[1642930373324,0.23087987,2544.0,2542.9,0.1572]
[1642930373572,0.23087987,2544.0,2543.3,1.25584442]
[1642930373775,0.23087987,2544.0,2542.9,0.1572]
[1642930373974,1.3137975,2543.5,2542.9,0.1572]
[1642930374374,0.23087987,2544.0,2542.9,0.1572]
[1642930374775,0.1572,2544.1,2542.9,0.1572]
[1642930374981,0.1572,2544.6,2543.0,3.34126452]
[1642930375177,0.1572,2544.6,2544.4,5.0]
[1642930375378,1.1418,2544.7,2544.4,5.0]
[1642930375577,1.1418,2544.7,2544.4,5.6]
[1642930375778,0.23087987,2544.6,2544.4,5.6]
[1642930376179,0.23087987,2544.6,2544.4,5.0]
[1642930377418,0.23087987,2544.6,2544.4,5.6]
[1642930377616,0.23087987,2544.6,2544.4,5.0]
[1642930378018,0.23087987,2544.6,2544.4,5.3]
[1642930378217,0.23087987,2544.6,2544.4,5.0]
[1642930378421,0.38275823,2544.6,2544.4,5.0]
[1642930378622,0.23087987,2544.6,2544.4,5.0]
[1642930379430,1.52996594,2543.8,2543.6,0.1572]
[1642930379630,1.52996594,2543.8,2543.3,0.1572]
[1642930380031,2.4068,2544.3,2543.3,0.1572]
[1642930380529,2.4068,2544.3,2543.4,0.25044026]
[1642930380927,1.51797796,2544.0,2543.4,0.25044026]
[1642930381170,1.42757195,2544.1,2544.0,2.04584563]
[1642930382776,2.564,2544.3,2544.0,2.04584563]
[1642930382979,2.4068,2544.3,2544.0,2.04584563]
[1642930383578,2.4068,2544.3,2544.0,2.34584563]
[1642930383778,2.4068,2544.3,2544.0,2.04584563]
[1642930384076,1.32834472,2544.1,2544.0,2.04584563]
[1642930384276,5.29e-06,2544.1,2544.0,2.04584563]
[1642930384483,5.55,2544.2,2543.4,0.25044026]
[1642930384826,4.9269616,2544.2,2543.4,0.25044026]
[1642930385024,16.5666,2545.2,2544.0,1.33633691]
[1642930385224,14.7995,2545.2,2544.1,4.92494856]
[1642930385424,14.7995,2545.2,2544.2,0.1572]
[1642930385734,15.88937621,2545.2,2544.2,0.6312]
[1642930385924,0.10085281,2544.8,2544.2,0.6312]
[1642930386125,0.0954147,2544.6,2544.4,0.3]
[1642930386325,0.23087987,2544.7,2544.4,0.3]
[1642930386526,0.23087987,2544.7,2544.2,0.4572]
[1642930386924,0.23087987,2544.7,2544.2,0.1572]
[1642930387130,2.485,2545.1,2544.4,1.43370218]
[1642930387331,2.485,2545.1,2544.5,4.92494856]
[1642930387332,1.2411,2545.1,2544.5,4.92494856]
[1642930387525,1.2411,2545.1,2544.5,5.22494856]
[1642930387725,1.2411,2545.1,2544.6,1.0]
[1642930387925,16.0084,2545.2,2544.6,1.0]
[1642930387926,11.8728,2545.2,2544.7,5.34184391]
[1642930388124,11.8728,2545.2,2545.0,1.46325424]
[1642930388325,11.8728,2545.2,2545.1,0.474]
[1642930388574,11.8728,2545.2,2545.1,0.774]
[1642930388973,11.8728,2545.2,2545.1,4.78952967]
[1642930389174,1.35828026,2545.9,2545.1,5.83171274]
[1642930389175,0.157,2545.9,2545.1,5.83171274]
[1642930389378,26.5537,2546.2,2545.2,23.107]
[1642930389579,0.23087987,2546.1,2545.7,1.23787199]
[1642930389783,21.2578,2546.2,2545.8,4.60114563]
[1642930389978,10.7952,2546.2,2545.9,0.157]
[1642930390179,10.7952,2546.2,2546.0,0.474]
[1642930390381,0.57658967,2546.7,2546.0,4.83719666]
[1642930390382,1.39361783,2546.6,2546.0,4.83719666]
[1642930390581,1.39361783,2546.6,2546.0,0.774]
[1642930390780,1.43091908,2546.2,2546.0,0.474]
[1642930391187,1.43091908,2546.2,2546.0,0.774]
[1642930391382,1.43091908,2546.2,2545.6,0.474]
[1642930391582,2.24053688,2546.5,2545.6,0.474]
[1642930391583,3.75491967,2545.7,2545.6,0.474]
[1642930391784,2.4,2545.7,2545.6,0.474]
[1642930391982,0.157,2546.0,2545.6,0.474]
[1642930392183,0.23087987,2546.1,2545.6,0.474]
[1642930392819,0.13757746,2546.0,2545.6,0.474]
[1642930393019,1.75734309,2546.1,2545.6,0.474]
[1642930393217,1.75734309,2546.1,2545.6,0.774]
[1642930393418,2.22789476,2546.0,2545.6,0.774]
[1642930393621,2.22789476,2546.0,2545.6,1.074]
[1642930394119,2.22789476,2546.0,2545.6,2.36471836]
[1642930394321,2.22789476,2546.0,2545.6,5.17254964]
[1642930394520,2.22789476,2546.0,2545.6,6.17254964]
[1642930394720,0.1529793,2545.9,2545.6,2.231]
[1642930394933,1.52331923,2546.0,2545.6,1.074]
[1642930395326,0.17690055,2545.9,2545.6,0.474]
[1642930395528,0.17690055,2545.9,2545.3,0.474]
[1642930395529,0.01254496,2545.9,2545.3,0.474]
[1642930395727,0.01254496,2545.9,2544.9,0.474]
[1642930395926,2.3331032,2545.8,2544.9,0.474]
[1642930396182,10.348,2545.7,2544.9,0.474]
[1642930396485,0.15063609,2545.6,2544.9,0.474]
[1642930396983,10.348,2545.7,2545.0,1.27531859]
[1642930397182,9.7814,2545.9,2545.1,23.581]
[1642930397385,9.7814,2545.9,2545.2,1.0]
[1642930397588,9.7814,2545.9,2545.3,0.157]
[1642930397589,10.3964,2545.8,2545.3,0.157]
[1642930397787,0.16582048,2545.7,2545.3,0.157]
[1642930397989,1.6112726,2545.7,2545.3,0.157]
[1642930398191,10.3964,2545.8,2545.2,0.474]
[1642930398788,10.3964,2545.8,2545.3,0.157]
[1642930398989,10.3964,2545.8,2545.3,4.17375829]
[1642930399390,10.2964,2545.8,2545.3,4.17375829]
[1642930399590,10.2964,2545.8,2545.4,1.0]
[1642930400027,10.2964,2545.8,2545.3,5.83960449]
[1642930400427,10.2964,2545.8,2545.3,28.78960449]
[1642930400627,10.2964,2545.8,2545.3,5.83960449]
[1642930400828,10.2964,2545.8,2545.3,1.757]
[1642930401028,10.2964,2545.8,2545.4,1.54264121]
[1642930401232,4.5511,2546.4,2545.5,4.86741597]
[1642930401233,0.157,2546.4,2545.5,4.86741597]
[1642930401430,13.584827,2546.6,2545.5,5.46741597]
[1642930401631,6.2049888,2547.4,2545.6,1.0]
[1642930401632,0.157,2547.2,2545.6,1.0]
[1642930401831,19.7973,2547.3,2545.8,22.95]
[1642930402030,19.7973,2547.3,2545.9,7.50657532]
[1642930402232,0.23087987,2546.7,2546.0,22.95]
[1642930402430,0.23087987,2546.7,2546.2,22.95]
[1642930402630,0.23087987,2546.7,2546.4,23.25]
[1642930402834,0.23087987,2546.7,2546.5,0.474]
[1642930403032,0.23087987,2546.7,2546.4,0.3]
[1642930403330,0.23087987,2546.7,2546.1,0.474]
[1642930403571,0.23087987,2546.7,2545.8,23.581]
[1642930403775,1.46021753,2546.6,2545.8,0.631]
[1642930403979,0.17690055,2546.5,2545.8,0.474]
[1642930404380,6.62431753,2546.6,2545.8,0.474]
[1642930404778,2.22740332,2546.5,2545.8,0.474]
[1642930404977,0.1020042,2546.4,2545.8,0.474]
[1642930405179,2.22740332,2546.5,2545.8,0.474]
[1642930406279,2.22740332,2546.5,2545.8,0.774]
[1642930406480,3.31981578,2546.5,2545.8,0.774]
[1642930406678,3.31981578,2546.5,2545.8,2.074]
[1642930407178,3.31981578,2546.5,2545.8,1.074]
[1642930407423,1.09241246,2546.5,2545.8,1.074]
[1642930407829,0.157,2546.4,2545.2,0.474]
[1642930408032,0.14988721,2546.3,2545.3,4.24440259]
[1642930408228,0.157,2546.5,2545.3,4.24440259]
[1642930408429,0.157,2546.5,2545.3,27.19440259]
[1642930408630,0.157,2546.5,2545.4,0.474]
[1642930408631,2.22749051,2546.4,2545.4,0.474]
[1642930408831,10.449,2546.3,2545.5,4.40144274]
[1642930409028,10.449,2546.3,2545.6,1.0]
[1642930409233,10.449,2546.3,2545.5,0.631]
[1642930409234,10.449,2546.3,2545.7,0.157]
[1642930409428,10.449,2546.3,2545.6,0.157]
[1642930409632,0.14141565,2546.2,2545.6,0.157]
[1642930410029,10.449,2546.3,2545.6,0.157]
[1642930410428,0.10900974,2546.2,2545.6,0.157]
[1642930410633,0.10900974,2546.2,2545.6,1.157]
[1642930410829,10.449,2546.3,2545.6,1.157]
[1642930411083,1.54358832,2546.1,2545.6,0.157]
[1642930411295,10.46114728,2546.3,2545.6,0.0001]
[1642930411296,0.01221275,2545.7,2545.6,0.0001]
[1642930411483,0.01221275,2545.7,2545.2,4.0]
[1642930411685,0.14946877,2545.6,2545.2,4.0]
[1642930411885,0.14946877,2545.6,2543.5,1.32001089]
[1642930411886,0.15365294,2545.4,2544.1,0.00262361]
[1642930412086,0.15365294,2545.4,2544.2,1.34243926]
[1642930412087,0.157,2545.3,2544.2,1.34243926]
[1642930412287,1.31463947,2545.1,2544.2,1.34243926]
[1642930412488,1.31463947,2545.1,2543.9,0.474]
[1642930412489,1.48916506,2544.7,2543.9,0.474]